fUSD/lending_fUSD_20251229
["ID","MTS","AMOUNT","RATE_DAILY","PERIOD"]
[400012730,1767018651329,-422.845317,0.00017,2]
[400012731,1767018651338,-422.845317,0.00017,2]
[400012732,1767018651348,-422.845317,0.00017,2]
[400012733,1767018651358,-422.845317,0.00017,2]
[400012734,1767018651367,-7330.36001906,0.00017,2]
[400012735,1767018651376,-352.483327,0.00017,2]
[400012736,1767018651385,-352.483327,0.00017,2]
[400012737,1767018651395,-352.483327,0.00017,2]
[400012738,1767018651404,-288.792626,0.00017,2]
[400012739,1767018651413,-352.483327,0.00017,2]
[400012740,1767018651423,-151.0,0.00017,2]
[400012741,1767018651433,-151.0,0.00017,2]
[400012742,1767018651442,-151.0,0.00017,2]
[400012743,1767018651452,-250.0,0.00017009,2]
[400012744,1767018651461,-719.0,0.00017043,2]
[400012745,1767018651470,-173.3376619,0.00017068,2]
[400012746,1767018651480,-719.0,0.00017077,2]
[400012747,1767018651489,-719.0,0.00017085,2]
[400012748,1767018651498,-719.0,0.00017093,2]
[400012749,1767018651507,-401.86,0.0001722,2]
[400012750,1767018651516,-719.0,0.00017269,2]
[400012751,1767018651526,-719.0,0.00017325,2]
[400012752,1767018651535,-500.0,0.00017342,2]
[400012753,1767018651544,-719.0,0.00017344,2]
[400012754,1767018651553,-719.0,0.0001743,2]
[400012755,1767018651562,-300.85334307,0.0001754,2]
[400012756,1767018651573,-719.0,0.00017627,2]
[400012757,1767018651583,-719.0,0.00017647,2]
[400012758,1767018651593,-719.0,0.00017664,2]
[400012759,1767018651603,-719.0,0.00017717,2]
[400012760,1767018651613,-719.0,0.00017724,2]
[400012761,1767018651624,-3671.0,0.00017808,2]
[400012762,1767018651637,-719.0,0.00017809,2]
[400012763,1767018651647,-719.0,0.00017881,2]
[400012764,1767018651656,-719.0,0.00017891,2]
[400012765,1767018651665,-719.0,0.00017897,2]
[400012766,1767018651677,-3584.53505189,0.000179,2]
[400012767,1767018651687,-719.0,0.00017909,2]
[400012768,1767018651697,-1092.6,0.00017993,2]
[400012769,1767018651707,-300.0,0.00017997,2]
[400012770,1767018651715,-666.0,0.00017997,2]
[400012771,1767018651724,-148097.81842165,0.00017998,2]
[400012772,1767018651733,-300.0,0.00017999,2]
[400012773,1767018651742,-395376.06063863,0.00018,2]
[400012774,1767018651752,-422.845317,0.00018,2]
[400012775,1767018651762,-422.845317,0.00018,2]
[400012776,1767018651772,-422.845317,0.00018,2]
[400012777,1767018651781,-422.845317,0.00018,2]
[400012778,1767018651791,-352.483327,0.00018,2]
[400012779,1767018651800,-352.483327,0.00018,2]
[400012780,1767018651809,-352.483327,0.00018,2]
[400012781,1767018651819,-352.483327,0.00018,2]
[400012782,1767018651828,-151.0,0.00018,2]
[400012783,1767018651837,-151.0,0.00018,2]
[400012784,1767018651846,-151.0,0.00018,2]
[400012785,1767018651855,-719.0,0.00018001,2]
[400012786,1767018651864,-401.86,0.0001804,2]
[400012787,1767018651875,-1000.0,0.00018082,2]
[400012788,1767018651884,-719.0,0.00018109,2]
[400012789,1767018651893,-719.0,0.00018111,2]
[400012790,1767018651902,-719.0,0.00018424,2]
[400012791,1767018651912,-719.0,0.00018478,2]
[400012792,1767018651921,-719.0,0.00018516,2]
[400012793,1767018651930,-719.0,0.00018568,2]
[400012794,1767018651940,-1000.0,0.0001876,2]
[400012795,1767018651949,-153.43,0.000188,2]
[400012796,1767018651959,-153.43,0.000188,2]
[400012797,1767018651968,-153.43,0.000188,2]
[400012798,1767018651978,-153.43,0.000188,2]
[400012799,1767018651987,-153.43,0.000188,2]
[400012800,1767018651996,-153.43,0.000188,2]
[400012801,1767018652005,-153.43,0.000188,2]
[400012802,1767018652014,-153.43,0.000188,2]
[400012803,1767018652023,-401.86,0.0001886,2]
[400012804,1767018652032,-300.0,0.00019,2]
[400012805,1767018652042,-27478.21205661,0.00019,2]
[400012806,1767018652051,-200.77537576,0.00019082,2]
[400012807,1767018652061,-2031.481272,0.00019178,2]
[400012808,1767018652070,-2031.481272,0.00019178,2]
[400012809,1767018652079,-2031.481272,0.00019178,2]
[400012810,1767018652088,-2031.481272,0.00019178,2]
[400012811,1767018652097,-2031.481272,0.00019178,2]
[400012812,1767018652106,-2031.481272,0.00019178,2]
[400012813,1767018652115,-2031.481272,0.00019178,2]
[400012814,1767018652126,-2031.481272,0.00019178,2]
[400012815,1767018652135,-5779.7455141,0.00019246,2]
[400012816,1767018652145,-1000.0,0.00019438,2]
[400012817,1767018652154,-300.85334307,0.000196,2]
[400012818,1767018652163,-194.0,0.00019616,2]
[400012819,1767018652173,-150.0,0.0001965,2]
[400012820,1767018652183,-1048.95,0.00019654,2]
[400012821,1767018652192,-401.86,0.0001968,2]
[400012822,1767018652202,-433.38,0.00019723,2]
[400012823,1767018652211,-159.64913359,0.00019841,2]
[400012824,1767018652221,-438.64,0.00019986,2]
[400012825,1767018652231,-1000.0,0.00020116,2]
[400012826,1767018652242,-250.0,0.00020198,2]
[400012827,1767018652252,-438.64,0.0002026,2]
[400012828,1767018652262,-1092.6,0.00020262,2]
[400012829,1767018652271,-401.86,0.000205,2]
[400012830,1767018652281,-728.24757425,0.00020734,2]
[400012831,1767018652291,-350.0,0.00020746,2]
[400012832,1767018652301,-1000.0,0.00020795,2]
[400012833,1767018652310,-500.0,0.00020822,2]
[400012834,1767018652320,-350.0,0.00021,2]
[400012835,1767018652329,-500.0,0.00021118,2]
[400012836,1767018652339,-300.0,0.00021118,2]
[400012837,1767018652349,-1800.54,0.00021118,2]
[400012838,1767018652359,-12085.430194,0.00021119,2]
[400012839,1767018652369,-185803.6022084,0.00021119,2]
[400012840,1767018652379,-10791.1552677,0.00021119,2]
[400012841,1767018652389,-147008.4610272,0.00021119,2]
[400012842,1767018652398,-210.1295187,0.00021224,2]
[400012843,1767018652407,-450.0,0.00021294,2]
[400012844,1767018652417,-401.86,0.0002132,2]
[400012845,1767018652426,-210.1295187,0.00021607,2]
[400012846,1767018652436,-150.0,0.00021644,2]
[400012847,1767018652445,-500.0,0.00021644,2]
[400012848,1767018652455,-150.0,0.00021644,2]
[400012849,1767018652465,-1048.0,0.00021644,2]
[400012850,1767018652474,-150.0,0.00021644,2]
[400012851,1767018652484,-150.0,0.00021644,2]
[400012852,1767018652493,-500.0,0.00021644,2]
[400012853,1767018652503,-150.0,0.00021644,2]
[400012854,1767018652512,-150.0,0.00021644,2]
[400012855,1767018652521,-150.0,0.00021644,2]
[400012856,1767018652530,-150.0,0.00021644,2]
[400012857,1767018652539,-150.0,0.00021644,2]
[400012858,1767018652549,-150.0,0.00021644,2]
[400012859,1767018652559,-150.0,0.00021644,2]
[400012860,1767018652568,-200.50413515,0.00021644,2]
[400012861,1767018652577,-150.0,0.00021644,2]
[400012862,1767018652587,-183.18195821,0.00021644,2]
[400012863,1767018652597,-422.3234902,0.00021647,2]
[400012864,1767018652607,-300.85334307,0.0002166,2]
[400012865,1767018652617,-500.0,0.00021671,2]
[400012866,1767018652630,-1048.0,0.00021671,2]
[400012867,1767018652640,-150.0,0.00021671,2]
[400012868,1767018652649,-252.2515866,0.00021671,2]
[400012869,1767018652659,-500.0,0.00021671,2]
[400012870,1767018652669,-200.0,0.00021671,2]
[400012871,1767018652679,-200.0,0.00021671,2]
[400012872,1767018652688,-150.0,0.00021671,2]
[400012873,1767018652698,-200.0,0.00021671,2]
[400012874,1767018652707,-214.66836114,0.00021671,2]
[400012875,1767018652716,-150.0,0.00021671,2]
[400012876,1767018652726,-150.0,0.00021671,2]
[400012877,1767018652736,-500.0,0.00021699,2]
[400012878,1767018652745,-1048.0,0.00021699,2]
[400012879,1767018652755,-150.0,0.00021699,2]
[400012880,1767018652764,-500.0,0.00021699,2]
[400012881,1767018652774,-150.0,0.00021699,2]
[400012882,1767018652783,-150.0,0.00021699,2]
[400012883,1767018652793,-500.0,0.00021726,2]
[400012884,1767018652802,-150.0,0.00021726,2]
[400012885,1767018652812,-1048.0,0.00021726,2]
[400012886,1767018652821,-500.0,0.00021726,2]
[400012887,1767018652830,-150.0,0.00021726,2]
[400012888,1767018652839,-206.7431376,0.00021726,2]
[400012889,1767018652848,-500.0,0.00021754,2]
[400012890,1767018652858,-1048.0,0.00021754,2]
[400012891,1767018652867,-500.0,0.00021754,2]
[400012892,1767018652877,-150.0,0.00021754,2]
[400012893,1767018652886,-201810.50428143,0.0002178,2]
[400012894,1767018652897,-151.0,0.0002178,2]
[400012895,1767018652906,-151.0,0.0002178,2]
[400012896,1767018652916,-151.0,0.0002178,2]
[400012897,1767018652925,-500.0,0.00021781,2]
[400012898,1767018652935,-1048.0,0.00021781,2]
[400012899,1767018652944,-500.0,0.00021781,2]
[400012900,1767018652954,-164.67458914,0.00021781,2]
[400012901,1767018652963,-2000.0,0.000218,2]
[400012902,1767018652973,-170.582746,0.00021808,2]
[400012903,1767018652982,-500.0,0.00021808,2]
[400012904,1767018652992,-1048.0,0.00021808,2]
[400012905,1767018653001,-500.0,0.00021808,2]
[400012906,1767018653010,-500.0,0.00021836,2]
[400012907,1767018653019,-1048.0,0.00021836,2]
[400012908,1767018653028,-500.0,0.00021836,2]
[400012909,1767018653135,-151.0,0.00021836,2]
[400012910,1767018653145,-151.0,0.00021836,2]
[400012911,1767018653155,-151.0,0.00021836,2]
[400012912,1767018653164,-210.1295189,0.0002184,2]
[400012913,1767018653174,-151.06982274,0.00021842,2]
[400012914,1767018653184,-1048.0,0.00021863,2]
[400012915,1767018653193,-500.0,0.00021863,2]
[400012916,1767018653202,-1048.0,0.00021891,2]
[400012917,1767018653212,-500.0,0.00021891,2]
[400012918,1767018653222,-1048.0,0.00021918,2]
[400012919,1767018653232,-298.0,0.00021918,2]
[400012920,1767018653242,-500.0,0.00021918,2]
[400012921,1767018653251,-503.89052975,0.00021918,2]
[400012922,1767018653261,-1048.0,0.00021945,2]
[400012923,1767018653270,-1048.0,0.00021973,2]
[400012924,1767018653279,-218.5077492,0.00021977,2]
[400012925,1767018653289,-505.70087023,0.00021977,2]
[400012926,1767018653299,-189.64825287,0.00021999,2]
[400012927,1767018653309,-236.97,0.00022,7]
[400012928,1767018653318,-152.0,0.00022,2]
[400012929,1767018653327,-1257.0,0.00022,2]
[400012930,1767018653337,-152.0,0.00022,2]
[400012931,1767018653347,-1257.0,0.00022,2]
[400012932,1767018653356,-152.0,0.00022,2]
[400012933,1767018653366,-1257.0,0.00022,2]
[400012934,1767018653376,-1257.0,0.00022,2]
[400012935,1767018653387,-152.0,0.00022,2]
[400012936,1767018653397,-1257.0,0.00022,2]
[400012937,1767018653406,-152.0,0.00022,2]
[400012938,1767018653416,-1257.0,0.00022,2]
[400012939,1767018653425,-151.0,0.00022,2]
[400012940,1767018653435,-151.0,0.00022,2]
[400012941,1767018653444,-152.0,0.00022,2]
[400012942,1767018653454,-1257.0,0.00022,2]
[400012943,1767018653463,-151.0,0.00022,2]
[400012944,1767018653475,-152.0,0.00022,2]
[400012945,1767018653484,-1257.0,0.00022,2]
[400012946,1767018653494,-152.0,0.00022,2]
[400012947,1767018653504,-151.0,0.00022,2]
[400012948,1767018653513,-1257.0,0.00022,2]
[400012949,1767018653523,-151.0,0.00022,2]
[400012950,1767018653533,-1257.0,0.00022,2]
[400012951,1767018653543,-152.0,0.00022,2]
[400012952,1767018653553,-152.0,0.00022,2]
[400012953,1767018653563,-151.0,0.00022,2]
[400012954,1767018653575,-1257.0,0.00022,2]
[400012955,1767018653585,-151.0,0.00022,2]
[400012956,1767018653595,-1257.0,0.00022,2]
[400012957,1767018653605,-152.0,0.00022,2]
[400012958,1767018653615,-151.0,0.00022,2]
[400012959,1767018653627,-152.0,0.00022,2]
[400012960,1767018653637,-151.0,0.00022,2]
[400012961,1767018653647,-1257.0,0.00022,2]
[400012962,1767018653656,-151.0,0.00022,2]
[400012963,1767018653667,-1257.0,0.00022,2]
[400012964,1767018653677,-152.0,0.00022,2]
[400012965,1767018653686,-152.0,0.00022,2]
[400012966,1767018653697,-1257.0,0.00022,2]
[400012967,1767018653707,-151.0,0.00022,2]
[400012968,1767018653716,-1257.0,0.00022,2]
[400012969,1767018653725,-151.0,0.00022,2]
[400012970,1767018653735,-152.0,0.00022,2]
[400012971,1767018653744,-1257.0,0.00022,2]
[400012972,1767018653754,-151.0,0.00022,2]
[400012973,1767018653764,-152.0,0.00022,2]
[400012974,1767018653773,-151.0,0.00022,2]
[400012975,1767018653783,-1257.0,0.00022,2]
[400012976,1767018653793,-152.0,0.00022,2]
[400012977,1767018653803,-1257.0,0.00022,2]
[400012978,1767018653812,-151.0,0.00022,2]
[400012979,1767018653822,-152.0,0.00022,2]
[400012980,1767018653831,-1257.0,0.00022,2]
[400012981,1767018653840,-151.0,0.00022,2]
[400012982,1767018653850,-152.0,0.00022,2]
[400012983,1767018653859,-151.0,0.00022,2]
[400012984,1767018653869,-1257.0,0.00022,2]
[400012985,1767018653880,-151.0,0.00022,2]
[400012986,1767018653890,-1257.0,0.00022,2]
[400012987,1767018653899,-151.0,0.00022,2]
[400012988,1767018653910,-151.0,0.00022,2]
[400012989,1767018653919,-151.0,0.00022,2]
[400012990,1767018653929,-298.90340821,0.00022,2]
[400012991,1767018653938,-39374.55,0.00022,7]
[400012992,1767018653947,-422.845317,0.00022,2]
[400012993,1767018653957,-422.845317,0.00022,2]
[400012994,1767018653967,-422.845317,0.00022,2]
[400012995,1767018653978,-422.845317,0.00022,2]
[400012996,1767018653987,-352.483327,0.00022,2]
[400012997,1767018653997,-352.483327,0.00022,2]
[400012998,1767018654007,-352.483327,0.00022,2]
[400012999,1767018654017,-352.483327,0.00022,2]
[400013000,1767018654027,-2031.481272,0.00022,2]
[400013001,1767018654037,-2031.481272,0.00022,2]
[400013002,1767018654046,-2031.481272,0.00022,2]
[400013003,1767018654056,-2031.481272,0.00022,2]
[400013004,1767018654066,-1048.0,0.00022,2]
[400013005,1767018654075,-1048.0,0.00022028,2]
[400013006,1767018654084,-1048.0,0.00022055,2]
[400013007,1767018654093,-834.28232251,0.0002206,2]
[400013008,1767018654103,-1048.0,0.00022082,2]
[400013009,1767018654112,-1048.0,0.0002211,2]
[400013010,1767018654122,-1048.0,0.00022137,2]
[400013011,1767018654132,-401.86,0.0002214,2]
[400013012,1767018654141,-5779.7455141,0.00022155,2]
[400013013,1767018654151,-1048.0,0.00022165,2]
[400013014,1767018654160,-1048.0,0.00022192,2]
[400013015,1767018654170,-1048.0,0.00022219,2]
[400013016,1767018654180,-1048.0,0.00022247,2]
[400013017,1767018654189,-1055.89842056,0.00022274,2]
[400013018,1767018654199,-152.11205024,0.00022304,2]
[400013019,1767018654209,-1092.6,0.00022531,2]
[400013020,1767018654219,-165.38,0.00022603,2]
[400013021,1767018654228,-620.0,0.00022625,2]
[400013022,1767018654238,-322.6107,0.00022625,2]
[400013023,1767018654248,-152.20980143,0.00022625,2]
[400013024,1767018654257,-500.0,0.00022625,2]
[400013025,1767018654267,-533.88981491,0.00022625,2]
[400013026,1767018654277,-500.0,0.00022625,2]
[400013027,1767018654286,-500.0,0.00022625,2]
[400013028,1767018654295,-250.0,0.00022625,2]
[400013029,1767018654305,-644.46532357,0.00022625,2]
[400013030,1767018654315,-1000.0,0.00022625,2]
[400013031,1767018654325,-500.0,0.00022625,2]
[400013032,1767018654334,-250.0,0.00022625,2]
[400013033,1767018654344,-1000.0,0.00022625,2]
[400013034,1767018654353,-500.0,0.00022625,2]
[400013035,1767018654363,-1000.0,0.00022625,2]
[400013036,1767018654373,-500.0,0.00022625,2]
[400013037,1767018654383,-1000.0,0.00022625,2]
[400013038,1767018654393,-1000.0,0.00022625,2]
[400013039,1767018654402,-500.0,0.00022625,2]
[400013040,1767018654412,-500.0,0.00022625,2]
[400013041,1767018654422,-1000.0,0.00022625,2]
[400013042,1767018654432,-500.0,0.00022625,2]
[400013043,1767018654441,-1000.0,0.00022625,2]
[400013044,1767018654451,-500.0,0.00022625,2]
[400013045,1767018654463,-846.55569035,0.00022625,2]
[400013046,1767018654473,-238.38323648,0.00022625,2]
[400013047,1767018654484,-250.0,0.00022625,2]
[400013048,1767018654493,-500.0,0.00022625,2]
[400013049,1767018654503,-250.0,0.00022625,2]
[400013050,1767018654513,-500.0,0.00022625,2]
[400013051,1767018654523,-250.0,0.00022625,2]
[400013052,1767018654533,-250.0,0.00022625,2]
[400013053,1767018654542,-500.0,0.00022625,2]
[400013054,1767018654552,-500.0,0.00022625,2]
[400013055,1767018654562,-250.0,0.00022625,2]
[400013056,1767018654571,-1500.0,0.00022625,2]
[400013057,1767018654580,-250.0,0.00022625,2]
[400013058,1767018654590,-500.0,0.00022625,2]
[400013059,1767018654600,-500.0,0.00022625,2]
[400013060,1767018654609,-250.0,0.00022625,2]
[400013061,1767018654621,-500.0,0.00022625,2]
[400013062,1767018654630,-250.0,0.00022625,2]
[400013063,1767018654639,-500.0,0.00022625,2]
[400013064,1767018654648,-250.0,0.00022625,2]
[400013065,1767018654659,-500.0,0.00022625,2]
[400013066,1767018654669,-250.0,0.00022625,2]
[400013067,1767018654678,-500.0,0.00022625,2]
[400013068,1767018654687,-250.0,0.00022625,2]
[400013069,1767018654699,-250.0,0.00022625,2]
[400013070,1767018654709,-250.0,0.00022625,2]
[400013071,1767018654719,-250.0,0.00022625,2]
[400013072,1767018654728,-250.0,0.00022625,2]
[400013073,1767018654738,-250.0,0.00022625,2]
[400013074,1767018654747,-500.0,0.00022625,2]
[400013075,1767018654756,-4744.74,0.00022731,2]
[400013076,1767018654767,-553.64373807,0.00023173,2]
[400013077,1767018654776,-278.71,0.0002345,2]
[400013078,1767018654786,-1000.0,0.00023542,2]
[400013079,1767018654795,-1599.48,0.00023601,2]
[400013080,1767018654804,-300.85334307,0.0002372,2]
[400013081,1767018654814,-574.12855637,0.00023721,2]
[400013082,1767018654823,-250.0,0.00023819,2]
[400013083,1767018654833,-259.68,0.00023861,2]
[400013084,1767018654842,-41458.3875169,0.00023886,2]
[400013085,1767018654852,-32802.0214521,0.00023886,2]
[400013086,1767018654861,-642.94,0.00023994,2]
[400013087,1767018654872,-334.5472959,0.00023994,2]
[400013088,1767018654881,-16650.70081165,0.00024,2]
[400013089,1767018654891,-1018.46525943,0.00024,2]
[400013090,1767018654901,-3600.0,0.00024,2]
[400013091,1767018654910,-320.3860841,0.00024,2]
[400013092,1767018654919,-1000.0,0.00024,2]
[400013093,1767018654929,-595.37131296,0.00024269,2]
[400013094,1767018654939,-39374.55,0.000243,7]
[400013095,1767018654948,-433.869,0.00024318,2]
[400013096,1767018654958,-1264.582,0.00024318,2]
[400013097,1767018654968,-1205.818,0.00024318,2]
[400013098,1767018654978,-912.0,0.00024318,2]
[400013099,1767018654988,-374.015,0.00024318,2]
[400013100,1767018654998,-4900.64,0.00024318,2]
[400013101,1767018655007,-1248.396,0.00024318,2]
[400013102,1767018655017,-613.0,0.00024318,2]
[400013103,1767018655027,-2696.6239746,0.00024476,2]
[400013104,1767018655037,-2407.832203,0.00024476,2]
[400013105,1767018655046,-9250.6166461,0.00024503,2]
[400013106,1767018655056,-7319.1202998,0.00024503,2]
[400013107,1767018655066,-1000.0,0.00024658,2]
[400013108,1767018655075,-151.0,0.00024658,2]
[400013109,1767018655085,-1092.6,0.00024799,2]
[400013110,1767018655095,-236.97,0.000248,7]
[400013111,1767018655105,-151.0,0.000248,2]
[400013112,1767018655115,-151.0,0.000248,7]
[400013113,1767018655125,-422.845317,0.000248,7]
[400013114,1767018655135,-422.845317,0.000248,7]
[400013115,1767018655144,-422.845317,0.000248,7]
[400013116,1767018655154,-422.845317,0.000248,7]
[400013117,1767018655164,-352.483327,0.000248,7]
[400013118,1767018655176,-352.483327,0.000248,7]
[400013119,1767018655186,-352.483327,0.000248,7]
[400013120,1767018655410,-352.483327,0.000248,7]
[400013121,1767018655461,-617.40005154,0.00024817,2]
[400013122,1767018655470,-5779.7455141,0.00025063,2]
[400013123,1767018655480,-728.24757425,0.0002513,2]
[400013124,1767018655490,-601.6981393,0.00025225,2]
[400013125,1767018655499,-537.259985,0.00025225,2]
[400013126,1767018655509,-263.22073191,0.00025363,2]
[400013127,1767018655519,-260.52700895,0.00025363,2]
[400013128,1767018655529,-640.24385345,0.00025365,2]
[400013129,1767018655538,-3155.0,0.00025391,2]
[400013130,1767018655548,-1000.0,0.000254,2]
[400013131,1767018655557,-2000.0,0.000255,2]
[400013132,1767018655567,-300.85334307,0.0002578,2]
[400013133,1767018655577,-663.93287602,0.00025913,2]
[400013134,1767018655587,-39374.55,0.00026,7]
[400013135,1767018655597,-688.49839244,0.00026461,2]
[400013136,1767018655607,-237.55451584,0.00026668,2]
[400013137,1767018655616,-443.88,0.00026676,2]
[400013138,1767018655629,-278.71,0.00026794,2]
[400013139,1767018655639,-150.0,0.00026819,2]
[400013140,1767018655648,-713.97283296,0.00027009,2]
[400013141,1767018655659,-1092.6,0.00027068,2]
[400013142,1767018655668,-155.527038,0.00027099,7]
[400013143,1767018655678,-151.0,0.00027099,7]
[400013144,1767018655688,-4663.0,0.00027099,2]
[400013145,1767018655697,-834.28232251,0.0002722,2]
[400013146,1767018655709,-500.0,0.00027226,7]
[400013147,1767018655719,-236.97,0.000273,7]
[400013148,1767018655728,-241.287,0.00027318,7]
[400013149,1767018655738,-912.0,0.00027318,2]
[400013150,1767018655748,-613.0,0.00027318,2]
[400013151,1767018655758,-150.0,0.00027369,2]
[400013152,1767018655767,-150.62,0.00027397,30]
[400013153,1767018655777,-300.0,0.00027397,2]
[400013154,1767018655786,-500.0,0.00027397,20]
[400013155,1767018655795,-233.423127,0.00027397,7]
[400013156,1767018655804,-233.423127,0.00027397,7]
[400013157,1767018655814,-233.423127,0.00027397,7]
[400013158,1767018655823,-233.423127,0.00027397,7]
[400013159,1767018655834,-233.423127,0.00027397,7]
[400013160,1767018655844,-233.423127,0.00027397,7]
[400013161,1767018655853,-233.423127,0.00027397,7]
[400013162,1767018655863,-233.423127,0.00027397,7]
[400013163,1767018655873,-233.423127,0.00027397,7]
[400013164,1767018655882,-153.0,0.00027397,2]
[400013165,1767018655892,-153.0,0.00027397,2]
[400013166,1767018655902,-153.0,0.00027397,2]
[400013167,1767018655912,-153.0,0.00027397,2]
[400013168,1767018655921,-153.0,0.00027397,2]
[400013169,1767018655930,-153.0,0.00027397,2]
[400013170,1767018655940,-153.0,0.00027397,2]
[400013171,1767018655950,-164.0,0.00027397,2]
[400013172,1767018655960,-153.0,0.00027397,2]
[400013173,1767018655969,-153.0,0.00027397,2]
[400013174,1767018655979,-153.0,0.00027397,2]
[400013175,1767018655990,-153.0,0.00027397,2]
[400013176,1767018655999,-153.0,0.00027397,2]
[400013177,1767018656010,-235.0,0.00027397,2]
[400013178,1767018656020,-153.0,0.00027397,2]
[400013179,1767018656031,-153.0,0.00027397,2]
[400013180,1767018656041,-153.0,0.00027397,2]
[400013181,1767018656051,-153.0,0.00027397,2]
[400013182,1767018656062,-153.0,0.00027397,2]
[400013183,1767018656072,-259.68,0.0002753,2]
[400013184,1767018656083,-740.38982778,0.00027557,2]
[400013185,1767018656093,-8321.04,0.00027671,2]
[400013186,1767018656103,-300.85334307,0.0002784,2]
[400013187,1767018656113,-5779.7455141,0.00027971,2]
[400013188,1767018656125,-976.0,0.00028,2]
[400013189,1767018656135,-849.0,0.00028,2]
[400013190,1767018656145,-39374.55,0.000281,7]
[400013191,1767018656155,-706.9410659,0.00028105,2]
[400013192,1767018656164,-1000.0,0.000283,2]
[400013193,1767018656174,-165.38,0.00028493,2]
[400013194,1767018656185,-9999.99,0.00029009,2]
[400013195,1767018656195,-18143.64,0.00029009,2]
[400013196,1767018656205,-29999.99,0.00029009,2]
[400013197,1767018656214,-201.154993,0.00029009,7]
[400013198,1767018656224,-151.0,0.00029009,7]
[400013199,1767018656233,-296.643705,0.00029009,7]
[400013200,1767018656243,-233.423127,0.00029009,7]
[400013201,1767018656253,-233.423127,0.00029009,7]
[400013202,1767018656262,-2000.0,0.000292,2]
[400013203,1767018656271,-1092.6,0.00029337,2]
[400013204,1767018656281,-2031.481272,0.00029337,7]
[400013205,1767018656291,-2031.481272,0.00029337,7]
[400013206,1767018656302,-2031.481272,0.00029337,7]
[400013207,1767018656312,-2031.481272,0.00029337,7]
[400013208,1767018656322,-728.24757425,0.00029527,2]
[400013209,1767018656331,-428.09091128,0.00029729,2]
[400013210,1767018656341,-1000.0,0.000298,2]
[400013211,1767018656351,-313.52630454,0.0002981,2]
[400013212,1767018656362,-150.0,0.00029819,2]
[400013213,1767018656375,-150.0,0.00029863,2]
[400013214,1767018656385,-150.0,0.0002989,2]
[400013215,1767018656394,-300.85334307,0.000299,2]
[400013216,1767018656404,-201.6820868,0.00029918,2]
[400013217,1767018656414,-468756.96,0.0003,5]
[400013218,1767018656424,-5662.14242901,0.0003,30]
[400013219,1767018656433,-1350.0,0.0003,10]
[400013220,1767018656443,-297.3,0.0003,4]
[400013221,1767018656452,-236.97,0.0003,7]
[400013222,1767018656461,-151.0,0.0003,7]
[400013223,1767018656472,-151.0,0.0003,2]
[400013224,1767018656482,-151.0,0.0003,7]
[400013225,1767018656491,-5003.6504,0.0003,2]
[400013226,1767018656501,-5003.65041,0.0003,2]
[400013227,1767018656510,-5003.65041,0.0003,2]
[400013228,1767018656520,-5003.65041,0.0003,2]
[400013229,1767018656529,-5003.65041,0.0003,2]